[Event "December 5 Late 2023"]
[Site "https://www.chess.com"]
[Date "2023.12.05"]
[Round "1"]
[White "Melikhov, Evgeny V."]
[Black "Jarmula, Lukasz"]
[Result "0-1"]
[Board "80"]
[TimeControl "180+1"]
[WhiteFideId "4122046"]
[BlackFideId "1160664"]
[WhiteElo "2390"]
[BlackElo "2740"]
[WhiteTeam "GRE"]
[BlackTeam "POL"]
[WhiteClock "0:00:05"]
[BlackClock "0:00:09"]

1. d4 {[%clk 0:03:00]}  d5 {[%clk 0:02:59]} 2. c4 {[%clk 0:02:59]}  c5 {[%clk 0:02:59]} 3. cxd5 {[%clk 0:02:58]}  Qxd5 {[%clk 0:02:58]} 4. Nf3 {[%clk 0:02:57]}  cxd4 {[%clk 0:02:59]} 5. Nc3 {[%clk 0:02:56]}  Qa5 {[%clk 0:02:58]} 6. Nxd4 {[%clk 0:02:55]}  Nf6 {[%clk 0:02:58]} 7. Nb3 {[%clk 0:02:45]}  Qc7 {[%clk 0:02:58]} 8. g3 {[%clk 0:02:44]}  e5 {[%clk 0:02:57]} 9. Bg2 {[%clk 0:02:42]}  Bb4 {[%clk 0:02:57]} 10. Qd3 {[%clk 0:02:32]}  O-O {[%clk 0:02:55]} 11. O-O {[%clk 0:02:00]}  Rd8 {[%clk 0:02:54]} 12. Qb5 {[%clk 0:01:45]}  Bxc3 {[%clk 0:02:24]} 13. bxc3 {[%clk 0:01:44]}  h6 {[%clk 0:02:19]} 14. Be3 {[%clk 0:01:22]}  Nc6 {[%clk 0:02:19]} 15. Rfd1 {[%clk 0:01:12]}  Bd7 {[%clk 0:02:06]} 16. Nc5 {[%clk 0:00:48]}  Rab8 {[%clk 0:01:57]} 17. Nxd7 {[%clk 0:00:46]}  Rxd7 {[%clk 0:01:57]} 18. Rxd7 {[%clk 0:00:42]}  Qxd7 {[%clk 0:01:56]} 19. Qb3 {[%clk 0:00:37]}  Na5 {[%clk 0:01:49]} 20. Qb4 {[%clk 0:00:33]}  b6 {[%clk 0:01:49]} 21. Rb1 {[%clk 0:00:26]}  Rc8 {[%clk 0:01:48]} 22. Bf3 {[%clk 0:00:20]}  Nd5 {[%clk 0:01:42]} 23. Rd1 {[%clk 0:00:16]}  Nxb4 {[%clk 0:01:22]} 24. Rxd7 {[%clk 0:00:15]}  Nbc6 {[%clk 0:01:22]} 25. Bd5 {[%clk 0:00:12]}  Rf8 {[%clk 0:01:20]} 26. Kg2 {[%clk 0:00:10]}  g5 {[%clk 0:01:12]} 27. h4 {[%clk 0:00:09]}  gxh4 {[%clk 0:01:09]} 28. gxh4 {[%clk 0:00:09]}  Kg7 {[%clk 0:01:09]} 29. f4 {[%clk 0:00:08]}  exf4 {[%clk 0:01:08]} 30. Bxf4 {[%clk 0:00:08]}  Kg6 {[%clk 0:01:02]} 31. e4 {[%clk 0:00:07]}  f6 {[%clk 0:00:59]} 32. Be6 {[%clk 0:00:06]}  Ne5 {[%clk 0:00:56]} 33. Bf5+ {[%clk 0:00:06]}  Kh5 {[%clk 0:00:56]} 34. Rg7 {[%clk 0:00:06]}  Nac4 {[%clk 0:00:47]} 35. Rh7 {[%clk 0:00:06]}  Nf7 {[%clk 0:00:41]} 36. Kh3 {[%clk 0:00:06]}  Nce5 {[%clk 0:00:38]} 37. Rg7 {[%clk 0:00:03]}  Rd8 {[%clk 0:00:23]} 38. Rg6 {[%clk 0:00:02]}  Rd3+ {[%clk 0:00:21]} 39. Rg3 {[%clk 0:00:02]}  Rxg3+ {[%clk 0:00:18]} 40. Bxg3 {[%clk 0:00:03]}  Nd6 {[%clk 0:00:17]} 41. Bf4 {[%clk 0:00:03]}  Nxf5 {[%clk 0:00:17]} 42. exf5 {[%clk 0:00:04]}  Nd3 {[%clk 0:00:16]} 43. Bg3 {[%clk 0:00:03]}  Nc5 {[%clk 0:00:15]} 44. Bb8 {[%clk 0:00:04]}  a6 {[%clk 0:00:15]} 45. Ba7 {[%clk 0:00:04]}  Nd7 {[%clk 0:00:15]} 46. Kg3 {[%clk 0:00:05]}  b5 {[%clk 0:00:14]} 47. a3 {[%clk 0:00:05]}  Ne5 {[%clk 0:00:14]} 48. Bd4 {[%clk 0:00:04]}  Nc4 {[%clk 0:00:14]} 49. Bxf6 {[%clk 0:00:04]}  Nxa3 {[%clk 0:00:14]} 50. Be7 {[%clk 0:00:04]}  Nc4 {[%clk 0:00:14]} 51. Kf4 {[%clk 0:00:05]}  a5 {[%clk 0:00:13]} 52. Ke4 {[%clk 0:00:04]}  a4 {[%clk 0:00:12]} 53. Kd3 {[%clk 0:00:05]}  Ne5+ {[%clk 0:00:09]} 54. Kc2 {[%clk 0:00:04]}  Nc6 {[%clk 0:00:09]} 55. Bd8 {[%clk 0:00:04]}  Nxd8 {[%clk 0:00:08]} 56. Kb2 {[%clk 0:00:04]}  Kg4 {[%clk 0:00:07]} 57. Ka3 {[%clk 0:00:04]}  Kxf5 {[%clk 0:00:07]} 58. c4 {[%clk 0:00:05]}  bxc4 {[%clk 0:00:07]} 59. Kxa4 {[%clk 0:00:06]}  Kg4 {[%clk 0:00:08]} 60. Kb4 {[%clk 0:00:06]}  Kxh4 {[%clk 0:00:08]} 61. Kxc4 {[%clk 0:00:05]}  Kg3 {[%clk 0:00:09]} 0-1

[Event "December 5 Late 2023"]
[Site "https://www.chess.com"]
[Date "2023.12.05"]
[Round "1"]
[White "Arjun Kalyan"]
[Black "Mickiewicz, Piotr"]
[Result "1-0"]
[Board "81"]
[TimeControl "180+1"]
[WhiteFideId "35018701"]
[BlackFideId "1114891"]
[WhiteElo "2733"]
[BlackElo "2389"]
[WhiteTeam "IND"]
[BlackTeam "POL"]
[WhiteClock "0:01:14"]
[BlackClock "0:00:00"]

1. c4 {[%clk 0:03:00]}  g6 {[%clk 0:02:57]} 2. e3 {[%clk 0:03:00]}  Bg7 {[%clk 0:02:57]} 3. Nc3 {[%clk 0:03:01]}  Nf6 {[%clk 0:02:57]} 4. Nf3 {[%clk 0:03:01]}  O-O {[%clk 0:02:57]} 5. d4 {[%clk 0:02:58]}  c5 {[%clk 0:02:57]} 6. Be2 {[%clk 0:02:52]}  cxd4 {[%clk 0:02:56]} 7. Nxd4 {[%clk 0:02:52]}  Nc6 {[%clk 0:02:56]} 8. O-O {[%clk 0:02:53]}  d6 {[%clk 0:02:55]} 9. Bf3 {[%clk 0:02:52]}  Bd7 {[%clk 0:02:56]} 10. Nxc6 {[%clk 0:02:52]}  Bxc6 {[%clk 0:02:55]} 11. h3 {[%clk 0:02:50]}  Qa5 {[%clk 0:02:50]} 12. Nd5 {[%clk 0:02:49]}  Nxd5 {[%clk 0:02:43]} 13. cxd5 {[%clk 0:02:48]}  Bb5 {[%clk 0:02:41]} 14. Re1 {[%clk 0:02:48]}  Rfc8 {[%clk 0:02:39]} 15. e4 {[%clk 0:02:44]}  Ba4 {[%clk 0:02:28]} 16. Qd3 {[%clk 0:02:41]}  Rc2 {[%clk 0:02:13]} 17. Bg5 {[%clk 0:02:32]}  Bxb2 {[%clk 0:01:57]} 18. Rab1 {[%clk 0:02:32]}  f6 {[%clk 0:01:33]} 19. Bh4 {[%clk 0:02:29]}  Rac8 {[%clk 0:01:31]} 20. Qe3 {[%clk 0:02:25]}  Qc5 {[%clk 0:01:26]} 21. Qh6 {[%clk 0:02:23]}  Bd7 {[%clk 0:01:11]} 22. Bg3 {[%clk 0:01:58]}  b5 {[%clk 0:01:08]} 23. h4 {[%clk 0:01:57]}  Bd4 {[%clk 0:01:07]} 24. Rf1 {[%clk 0:01:56]}  b4 {[%clk 0:00:56]} 25. Rbd1 {[%clk 0:01:51]}  a5 {[%clk 0:00:54]} 26. Rd2 {[%clk 0:01:36]}  a4 {[%clk 0:00:48]} 27. Rxc2 {[%clk 0:01:35]}  Qxc2 {[%clk 0:00:48]} 28. e5 {[%clk 0:01:27]}  Bxe5 {[%clk 0:00:46]} 29. Bxe5 {[%clk 0:01:26]}  dxe5 {[%clk 0:00:40]} 30. h5 {[%clk 0:01:21]}  g5 {[%clk 0:00:38]} 31. d6 {[%clk 0:01:22]}  Qc5 {[%clk 0:00:31]} 32. Rd1 {[%clk 0:01:18]}  b3 {[%clk 0:00:26]} 33. axb3 {[%clk 0:01:18]}  axb3 {[%clk 0:00:26]} 34. Bd5+ {[%clk 0:01:18]}  Kh8 {[%clk 0:00:19]} 35. Bxb3 {[%clk 0:01:16]}  e4 {[%clk 0:00:15]} 36. Bf7 {[%clk 0:01:14]}  Bf5 {[%clk 0:00:00]} 37. Bg6 {[%clk 0:01:14]} 1-0

[Event "December 5 Late 2023"]
[Site "https://www.chess.com"]
[Date "2023.12.05"]
[Round "1"]
[White "Sattarov, Bobir"]
[Black "Donchenko, Anatoly"]
[Result "1-0"]
[Board "83"]
[TimeControl "180+1"]
[WhiteFideId "14203081"]
[BlackFideId "4106091"]
[WhiteElo "2725"]
[BlackElo "2388"]
[WhiteTeam "UZB"]
[BlackTeam "GER"]
[WhiteClock "0:01:19"]
[BlackClock "0:01:16"]

1. e4 {[%clk 0:03:00]}  c5 {[%clk 0:02:58]} 2. Nf3 {[%clk 0:02:59]}  d6 {[%clk 0:02:58]} 3. Nc3 {[%clk 0:02:59]}  a6 {[%clk 0:02:57]} 4. g3 {[%clk 0:02:59]}  g6 {[%clk 0:02:55]} 5. Bg2 {[%clk 0:02:47]}  Bg7 {[%clk 0:02:54]} 6. O-O {[%clk 0:02:46]}  Bg4 {[%clk 0:02:53]} 7. h3 {[%clk 0:02:44]}  Bxf3 {[%clk 0:02:53]} 8. Bxf3 {[%clk 0:02:44]}  Nc6 {[%clk 0:02:53]} 9. Bg2 {[%clk 0:02:45]}  Nf6 {[%clk 0:02:53]} 10. d3 {[%clk 0:02:45]}  O-O {[%clk 0:02:52]} 11. f4 {[%clk 0:02:45]}  Rb8 {[%clk 0:02:47]} 12. g4 {[%clk 0:02:38]}  Nd4 {[%clk 0:02:46]} 13. a4 {[%clk 0:02:35]}  b5 {[%clk 0:02:45]} 14. axb5 {[%clk 0:02:34]}  axb5 {[%clk 0:02:45]} 15. Ra7 {[%clk 0:02:28]}  b4 {[%clk 0:02:44]} 16. Nd5 {[%clk 0:02:27]}  Nxd5 {[%clk 0:02:43]} 17. exd5 {[%clk 0:02:27]}  Nb5 {[%clk 0:02:40]} 18. Ra2 {[%clk 0:02:13]}  Ra8 {[%clk 0:02:39]} 19. Rxa8 {[%clk 0:02:12]}  Qxa8 {[%clk 0:02:39]} 20. Re1 {[%clk 0:02:11]}  Qa7 {[%clk 0:02:38]} 21. Kh2 {[%clk 0:02:11]}  Re8 {[%clk 0:02:34]} 22. h4 {[%clk 0:02:08]}  Nd4 {[%clk 0:02:29]} 23. h5 {[%clk 0:02:08]}  b3 {[%clk 0:02:23]} 24. c3 {[%clk 0:02:08]}  Nc2 {[%clk 0:02:22]} 25. Rf1 {[%clk 0:02:04]}  Qa4 {[%clk 0:02:18]} 26. Be4 {[%clk 0:02:02]}  Ra8 {[%clk 0:02:08]} 27. hxg6 {[%clk 0:01:59]}  hxg6 {[%clk 0:02:07]} 28. Kg3 {[%clk 0:01:56]}  Qd7 {[%clk 0:01:57]} 29. f5 {[%clk 0:01:47]}  Be5+ {[%clk 0:01:50]} 30. Kg2 {[%clk 0:01:45]}  Kg7 {[%clk 0:01:49]} 31. Rh1 {[%clk 0:01:42]}  Ra1 {[%clk 0:01:41]} 32. Qf3 {[%clk 0:01:39]}  g5 {[%clk 0:01:34]} 33. Qh3 {[%clk 0:01:21]}  e6 {[%clk 0:01:16]} 34. Qh8# {[%clk 0:01:19]} 1-0

[Event "December 5 Late 2023"]
[Site "https://www.chess.com"]
[Date "2023.12.05"]
[Round "1"]
[White "Chaika, Vitalii"]
[Black "Schmakel, Sam"]
[Result "0-1"]
[Board "84"]
[TimeControl "180+1"]
[WhiteFideId "14111802"]
[BlackFideId "2039311"]
[WhiteElo "2388"]
[BlackElo "2722"]
[WhiteTeam "UKR"]
[BlackTeam "USA"]
[WhiteClock "0:00:00"]
[BlackClock "0:00:12"]

1. d4 {[%clk 0:03:00]}  Nf6 {[%clk 0:02:59]} 2. Bf4 {[%clk 0:03:01]}  g6 {[%clk 0:02:55]} 3. e3 {[%clk 0:03:02]}  Bg7 {[%clk 0:02:55]} 4. h3 {[%clk 0:03:02]}  O-O {[%clk 0:02:55]} 5. Nf3 {[%clk 0:03:03]}  c5 {[%clk 0:02:55]} 6. c3 {[%clk 0:03:03]}  Qb6 {[%clk 0:02:54]} 7. Qb3 {[%clk 0:03:03]}  d6 {[%clk 0:02:54]} 8. Nbd2 {[%clk 0:02:55]}  Be6 {[%clk 0:02:54]} 9. Qxb6 {[%clk 0:02:48]}  axb6 {[%clk 0:02:54]} 10. a3 {[%clk 0:02:49]}  Nbd7 {[%clk 0:02:54]} 11. Be2 {[%clk 0:02:43]}  Bd5 {[%clk 0:02:54]} 12. O-O {[%clk 0:02:40]}  Bc6 {[%clk 0:02:54]} 13. Rfe1 {[%clk 0:02:34]}  b5 {[%clk 0:02:47]} 14. e4 {[%clk 0:02:09]}  Nxe4 {[%clk 0:02:40]} 15. Nxe4 {[%clk 0:02:09]}  Bxe4 {[%clk 0:02:41]} 16. Bxb5 {[%clk 0:02:09]}  Nf6 {[%clk 0:02:36]} 17. Nd2 {[%clk 0:02:02]}  d5 {[%clk 0:02:32]} 18. f3 {[%clk 0:01:46]}  Bf5 {[%clk 0:02:28]} 19. Rxe7 {[%clk 0:01:41]}  cxd4 {[%clk 0:02:27]} 20. cxd4 {[%clk 0:01:41]}  b6 {[%clk 0:02:20]} 21. g4 {[%clk 0:01:18]}  Be6 {[%clk 0:02:20]} 22. Rc1 {[%clk 0:01:16]}  Rfc8 {[%clk 0:02:08]} 23. Rxc8+ {[%clk 0:01:09]}  Rxc8 {[%clk 0:02:09]} 24. Rc7 {[%clk 0:01:08]}  Ra8 {[%clk 0:02:03]} 25. Nb3 {[%clk 0:01:04]}  h5 {[%clk 0:01:52]} 26. Bc6 {[%clk 0:01:01]}  Rd8 {[%clk 0:01:44]} 27. Rb7 {[%clk 0:00:59]}  Rc8 {[%clk 0:01:26]} 28. Rb8 {[%clk 0:00:58]}  Rxb8 {[%clk 0:01:23]} 29. Bxb8 {[%clk 0:00:58]}  Nd7 {[%clk 0:01:22]} 30. Bc7 {[%clk 0:00:55]}  Kf8 {[%clk 0:01:21]} 31. Bxd7 {[%clk 0:00:54]}  Bxd7 {[%clk 0:01:22]} 32. Bxb6 {[%clk 0:00:55]}  Ba4 {[%clk 0:01:20]} 33. Nd2 {[%clk 0:00:51]}  Bh6 {[%clk 0:01:20]} 34. Ba5 {[%clk 0:00:48]}  Be3+ {[%clk 0:01:20]} 35. Kf1 {[%clk 0:00:47]}  Bxd4 {[%clk 0:01:21]} 36. Bc3 {[%clk 0:00:46]}  Bb5+ {[%clk 0:01:15]} 37. Ke1 {[%clk 0:00:44]}  Be3 {[%clk 0:01:15]} 38. b3 {[%clk 0:00:39]}  Ke7 {[%clk 0:01:12]} 39. a4 {[%clk 0:00:39]}  Bd3 {[%clk 0:01:12]} 40. b4 {[%clk 0:00:37]}  Kd6 {[%clk 0:01:02]} 41. Nb3 {[%clk 0:00:35]}  Bc2 {[%clk 0:00:56]} 42. Nc5 {[%clk 0:00:27]}  d4 {[%clk 0:00:54]} 43. Bd2 {[%clk 0:00:25]}  Bg1 {[%clk 0:00:50]} 44. a5 {[%clk 0:00:25]}  Kc6 {[%clk 0:00:43]} 45. Kf1 {[%clk 0:00:24]}  Bh2 {[%clk 0:00:43]} 46. Kg2 {[%clk 0:00:24]}  Bd6 {[%clk 0:00:40]} 47. a6 {[%clk 0:00:22]}  Kb6 {[%clk 0:00:39]} 48. f4 {[%clk 0:00:15]}  hxg4 {[%clk 0:00:35]} 49. hxg4 {[%clk 0:00:16]}  Bd1 {[%clk 0:00:35]} 50. Ne4 {[%clk 0:00:12]}  Be7 {[%clk 0:00:27]} 51. g5 {[%clk 0:00:10]}  Kxa6 {[%clk 0:00:24]} 52. Kg3 {[%clk 0:00:05]}  Kb5 {[%clk 0:00:23]} 53. Nf6 {[%clk 0:00:04]}  Bxb4 {[%clk 0:00:19]} 54. Bc1 {[%clk 0:00:03]}  Kc4 {[%clk 0:00:14]} 55. f5 {[%clk 0:00:03]}  gxf5 {[%clk 0:00:13]} 56. Kf4 {[%clk 0:00:03]}  Bc2 {[%clk 0:00:13]} 57. Nd7 {[%clk 0:00:01]}  d3 {[%clk 0:00:12]} 58. Ne5+ {[%clk 0:00:01]}  Kd5 {[%clk 0:00:11]} 59. Nxf7 {[%clk 0:00:01]}  d2 {[%clk 0:00:10]} 60. Bxd2 {[%clk 0:00:01]}  Bxd2+ {[%clk 0:00:11]} 61. Kf3 {[%clk 0:00:01]}  Be4+ {[%clk 0:00:12]} 62. Kg3 {[%clk 0:00:01]}  f4+ {[%clk 0:00:11]} 63. Kg4 {[%clk 0:00:00]}  f3 {[%clk 0:00:12]} 0-1

[Event "December 5 Late 2023"]
[Site "https://www.chess.com"]
[Date "2023.12.05"]
[Round "1"]
[White "Djokic, Mihailo"]
[Black "Figorito, Nick"]
[Result "1-0"]
[Board "89"]
[TimeControl "180+1"]
[WhiteFideId "976440"]
[BlackFideId "30923689"]
[WhiteElo "2713"]
[BlackElo "2375"]
[WhiteTeam "SRB"]
[BlackTeam "USA"]
[WhiteClock "0:01:42"]
[BlackClock "0:00:00"]

1. e4 {[%clk 0:03:00]}  e6 {[%clk 0:03:00]} 2. d4 {[%clk 0:03:01]}  d5 {[%clk 0:03:01]} 3. Nc3 {[%clk 0:03:01]}  Bb4 {[%clk 0:03:01]} 4. e5 {[%clk 0:03:01]}  c5 {[%clk 0:02:59]} 5. a3 {[%clk 0:03:02]}  Bxc3+ {[%clk 0:02:59]} 6. bxc3 {[%clk 0:03:03]}  Ne7 {[%clk 0:02:59]} 7. h4 {[%clk 0:03:03]}  Nbc6 {[%clk 0:02:58]} 8. h5 {[%clk 0:03:04]}  h6 {[%clk 0:02:58]} 9. Nf3 {[%clk 0:03:03]}  Qa5 {[%clk 0:02:58]} 10. Bd2 {[%clk 0:03:02]}  Qa4 {[%clk 0:02:58]} 11. Rh4 {[%clk 0:03:01]}  Qa5 {[%clk 0:02:39]} 12. Rf4 {[%clk 0:02:56]}  b6 {[%clk 0:02:33]} 13. Nh4 {[%clk 0:02:56]}  Ba6 {[%clk 0:02:31]} 14. c4 {[%clk 0:02:47]}  Qa4 {[%clk 0:02:28]} 15. dxc5 {[%clk 0:02:48]}  Bxc4 {[%clk 0:02:06]} 16. Bxc4 {[%clk 0:02:38]}  dxc4 {[%clk 0:02:07]} 17. Qg4 {[%clk 0:02:39]}  Qxc2 {[%clk 0:01:54]} 18. Qxg7 {[%clk 0:02:36]}  O-O-O {[%clk 0:01:54]} 19. Nf3 {[%clk 0:02:23]}  Rhg8 {[%clk 0:01:35]} 20. Qxf7 {[%clk 0:02:23]}  Rxg2 {[%clk 0:01:36]} 21. Qxe6+ {[%clk 0:02:18]}  Kb7 {[%clk 0:01:36]} 22. Qxc4 {[%clk 0:02:02]}  Rg1+ {[%clk 0:01:21]} 23. Nxg1 {[%clk 0:01:59]}  Qxd2+ {[%clk 0:01:22]} 24. Kf1 {[%clk 0:01:59]}  Nxe5 {[%clk 0:01:05]} 25. Qe4+ {[%clk 0:01:59]}  N7c6 {[%clk 0:01:05]} 26. cxb6 {[%clk 0:01:55]}  axb6 {[%clk 0:01:00]} 27. Nf3 {[%clk 0:01:56]}  Qb2 {[%clk 0:00:59]} 28. Rb1 {[%clk 0:01:52]}  Qc3 {[%clk 0:00:17]} 29. Nxe5 {[%clk 0:01:51]}  Qxe5 {[%clk 0:00:15]} 30. Rf7+ {[%clk 0:01:48]}  Ka6 {[%clk 0:00:00]} 31. Qxc6 {[%clk 0:01:42]} 1-0

[Event "December 5 Late 2023"]
[Site "https://www.chess.com"]
[Date "2023.12.05"]
[Round "1"]
[White "Azali, Tannaz"]
[Black "Zeltsan, Joseph"]
[Result "0-1"]
[Board "94"]
[TimeControl "180+1"]
[WhiteFideId "12537721"]
[BlackFideId "30932980"]
[WhiteElo "2373"]
[BlackElo "2707"]
[WhiteTeam "IRI"]
[BlackTeam "USA"]
[WhiteClock "0:00:02"]
[BlackClock "0:00:13"]

1. e4 {[%clk 0:03:00]}  d5 {[%clk 0:02:58]} 2. exd5 {[%clk 0:02:59]}  Qxd5 {[%clk 0:02:59]} 3. Nc3 {[%clk 0:02:59]}  Qa5 {[%clk 0:02:59]} 4. d4 {[%clk 0:02:58]}  Nf6 {[%clk 0:03:00]} 5. Nf3 {[%clk 0:02:59]}  Nc6 {[%clk 0:03:01]} 6. Bd2 {[%clk 0:02:53]}  Bg4 {[%clk 0:03:01]} 7. h3 {[%clk 0:02:52]}  Qh5 {[%clk 0:02:59]} 8. Be2 {[%clk 0:02:48]}  O-O-O {[%clk 0:02:59]} 9. O-O {[%clk 0:02:36]}  e6 {[%clk 0:02:59]} 10. Be3 {[%clk 0:02:28]}  Bd6 {[%clk 0:02:48]} 11. Ng5 {[%clk 0:02:22]}  Bxe2 {[%clk 0:02:39]} 12. Qxe2 {[%clk 0:02:22]}  Qg6 {[%clk 0:02:34]} 13. Rad1 {[%clk 0:01:40]}  Rhe8 {[%clk 0:02:16]} 14. Qd3 {[%clk 0:01:36]}  Qh5 {[%clk 0:02:02]} 15. Nge4 {[%clk 0:01:09]}  Be7 {[%clk 0:01:46]} 16. Qc4 {[%clk 0:00:59]}  Nxe4 {[%clk 0:01:40]} 17. Nxe4 {[%clk 0:00:59]}  Qd5 {[%clk 0:01:40]} 18. Qxd5 {[%clk 0:00:58]}  exd5 {[%clk 0:01:38]} 19. Ng3 {[%clk 0:00:58]}  g6 {[%clk 0:01:36]} 20. c3 {[%clk 0:00:57]}  Bh4 {[%clk 0:01:26]} 21. Rfe1 {[%clk 0:00:50]}  Re6 {[%clk 0:01:26]} 22. Bf4 {[%clk 0:00:50]}  Rde8 {[%clk 0:01:25]} 23. Kf1 {[%clk 0:00:50]}  Kd7 {[%clk 0:01:06]} 24. Rxe6 {[%clk 0:00:49]}  Rxe6 {[%clk 0:01:07]} 25. Re1 {[%clk 0:00:49]}  Bd8 {[%clk 0:01:02]} 26. Rxe6 {[%clk 0:00:48]}  Kxe6 {[%clk 0:01:02]} 27. Ke2 {[%clk 0:00:47]}  h5 {[%clk 0:01:03]} 28. Nf1 {[%clk 0:00:46]}  Ne7 {[%clk 0:00:43]} 29. Nd2 {[%clk 0:00:42]}  c6 {[%clk 0:00:41]} 30. Nf3 {[%clk 0:00:42]}  Nf5 {[%clk 0:00:37]} 31. Ng5+ {[%clk 0:00:37]}  Ke7 {[%clk 0:00:34]} 32. g4 {[%clk 0:00:32]}  Ng7 {[%clk 0:00:24]} 33. Bg3 {[%clk 0:00:28]}  Ne6 {[%clk 0:00:18]} 34. Nf3 {[%clk 0:00:24]}  hxg4 {[%clk 0:00:17]} 35. hxg4 {[%clk 0:00:24]}  f6 {[%clk 0:00:18]} 36. Ke3 {[%clk 0:00:23]}  Kf7 {[%clk 0:00:18]} 37. Nd2 {[%clk 0:00:20]}  Be7 {[%clk 0:00:19]} 38. f4 {[%clk 0:00:21]}  Bf8 {[%clk 0:00:19]} 39. Kf3 {[%clk 0:00:21]}  f5 {[%clk 0:00:19]} 40. gxf5 {[%clk 0:00:21]}  gxf5 {[%clk 0:00:20]} 41. Nf1 {[%clk 0:00:22]}  Nc7 {[%clk 0:00:17]} 42. Ne3 {[%clk 0:00:22]}  Ke6 {[%clk 0:00:17]} 43. Bh4 {[%clk 0:00:21]}  Nb5 {[%clk 0:00:18]} 44. Bg5 {[%clk 0:00:21]}  Nd6 {[%clk 0:00:18]} 45. Nd1 {[%clk 0:00:19]}  Ne4 {[%clk 0:00:18]} 46. Bh4 {[%clk 0:00:19]}  Bh6 {[%clk 0:00:18]} 47. Nf2 {[%clk 0:00:19]}  a5 {[%clk 0:00:18]} 48. Nd3 {[%clk 0:00:19]}  Bf8 {[%clk 0:00:19]} 49. Be1 {[%clk 0:00:18]}  a4 {[%clk 0:00:19]} 50. b3 {[%clk 0:00:19]}  b5 {[%clk 0:00:18]} 51. c4 {[%clk 0:00:17]}  bxc4 {[%clk 0:00:17]} 52. bxc4 {[%clk 0:00:18]}  dxc4 {[%clk 0:00:18]} 53. Ne5 {[%clk 0:00:19]}  Kd5 {[%clk 0:00:18]} 54. Ke3 {[%clk 0:00:19]}  c5 {[%clk 0:00:18]} 55. dxc5 {[%clk 0:00:18]}  Bxc5+ {[%clk 0:00:19]} 56. Ke2 {[%clk 0:00:19]}  Bd6 {[%clk 0:00:18]} 57. Nf3 {[%clk 0:00:18]}  Bxf4 {[%clk 0:00:18]} 58. Nh4 {[%clk 0:00:18]}  Ke6 {[%clk 0:00:18]} 59. Kf3 {[%clk 0:00:18]}  Be5 {[%clk 0:00:18]} 60. Ke2 {[%clk 0:00:17]}  Nc3+ {[%clk 0:00:15]} 61. Kd2 {[%clk 0:00:11]}  Nxa2 {[%clk 0:00:14]} 62. Kc2 {[%clk 0:00:12]}  c3 {[%clk 0:00:12]} 63. Nf3 {[%clk 0:00:11]}  Nb4+ {[%clk 0:00:13]} 64. Kb1 {[%clk 0:00:10]}  Bf6 {[%clk 0:00:12]} 65. Kc1 {[%clk 0:00:05]}  a3 {[%clk 0:00:13]} 66. Kb1 {[%clk 0:00:05]}  a2+ {[%clk 0:00:13]} 67. Ka1 {[%clk 0:00:02]}  c2+ {[%clk 0:00:13]} 0-1

[Event "December 5 Late 2023"]
[Site "https://www.chess.com"]
[Date "2023.12.05"]
[Round "1"]
[White "Zakarian, David"]
[Black "Hambleton, Aman"]
[Result "1-0"]
[Board "96"]
[TimeControl "180+1"]
[WhiteFideId "13301276"]
[BlackFideId "2606577"]
[WhiteElo "2371"]
[BlackElo "2700"]
[WhiteTeam "ARM"]
[BlackTeam "CAN"]
[WhiteClock "0:01:11"]
[BlackClock "0:00:02"]

1. d4 {[%clk 0:03:00]}  e5 {[%clk 0:02:56]} 2. dxe5 {[%clk 0:03:00]}  Nc6 {[%clk 0:02:57]} 3. Nf3 {[%clk 0:03:01]}  Qe7 {[%clk 0:02:57]} 4. Nc3 {[%clk 0:02:58]}  Nxe5 {[%clk 0:02:57]} 5. Nxe5 {[%clk 0:02:59]}  Qxe5 {[%clk 0:02:58]} 6. g3 {[%clk 0:02:59]}  Bc5 {[%clk 0:02:58]} 7. Bf4 {[%clk 0:02:58]}  Qe7 {[%clk 0:02:57]} 8. Nd5 {[%clk 0:02:55]}  Qe4 {[%clk 0:02:51]} 9. f3 {[%clk 0:02:49]}  Qxf4 {[%clk 0:02:39]} 10. Nxf4 {[%clk 0:02:48]}  c6 {[%clk 0:02:23]} 11. e4 {[%clk 0:02:35]}  d6 {[%clk 0:02:19]} 12. Bh3 {[%clk 0:02:34]}  Bxh3 {[%clk 0:02:10]} 13. Nxh3 {[%clk 0:02:35]}  Nf6 {[%clk 0:02:10]} 14. Qd3 {[%clk 0:02:29]}  O-O {[%clk 0:02:08]} 15. O-O-O {[%clk 0:02:29]}  Rad8 {[%clk 0:01:52]} 16. f4 {[%clk 0:02:24]}  Bb6 {[%clk 0:01:49]} 17. Kb1 {[%clk 0:02:23]}  Rfe8 {[%clk 0:01:38]} 18. Rhe1 {[%clk 0:02:20]}  h6 {[%clk 0:01:31]} 19. Qf3 {[%clk 0:02:19]}  Bc7 {[%clk 0:01:19]} 20. e5 {[%clk 0:02:14]}  Ba5 {[%clk 0:00:44]} 21. c3 {[%clk 0:02:11]}  Nd5 {[%clk 0:00:41]} 22. exd6 {[%clk 0:02:08]}  Rf8 {[%clk 0:00:41]} 23. Re5 {[%clk 0:01:42]}  b5 {[%clk 0:00:17]} 24. f5 {[%clk 0:01:38]}  Rxd6 {[%clk 0:00:03]} 25. Nf4 {[%clk 0:01:36]}  Bxc3 {[%clk 0:00:03]} 26. Nxd5 {[%clk 0:01:35]}  Bxe5 {[%clk 0:00:04]} 27. Ne7+ {[%clk 0:01:35]}  Kh8 {[%clk 0:00:04]} 28. Rxd6 {[%clk 0:01:33]}  Bxd6 {[%clk 0:00:05]} 29. Nxc6 {[%clk 0:01:34]}  a6 {[%clk 0:00:02]} 30. Qd5 {[%clk 0:01:32]}  Bc7 {[%clk 0:00:02]} 31. Nd4 {[%clk 0:01:30]}  Rg8 {[%clk 0:00:01]} 32. Qxf7 {[%clk 0:01:29]}  Be5 {[%clk 0:00:02]} 33. Ne6 {[%clk 0:01:29]}  Bf6 {[%clk 0:00:02]} 34. Nf4 {[%clk 0:01:29]}  Rd8 {[%clk 0:00:01]} 35. Ng6+ {[%clk 0:01:28]}  Kh7 {[%clk 0:00:01]} 36. a3 {[%clk 0:01:21]}  a5 {[%clk 0:00:02]} 37. Qc7 {[%clk 0:01:20]}  b4 {[%clk 0:00:02]} 38. Qxa5 {[%clk 0:01:18]}  b3 {[%clk 0:00:02]} 39. Qe1 {[%clk 0:01:17]}  Rc8 {[%clk 0:00:02]} 40. Nf4 {[%clk 0:01:17]}  Rc2 {[%clk 0:00:01]} 41. Nd3 {[%clk 0:01:16]}  Rxh2 {[%clk 0:00:01]} 42. Qd1 {[%clk 0:01:13]}  h5 {[%clk 0:00:02]} 43. Qxb3 {[%clk 0:01:13]}  Rg2 {[%clk 0:00:02]} 44. Nf4 {[%clk 0:01:12]}  Rg1+ {[%clk 0:00:01]} 45. Ka2 {[%clk 0:01:12]}  Rh1 {[%clk 0:00:01]} 46. Qf7 {[%clk 0:01:10]}  h4 {[%clk 0:00:01]} 47. Qg6+ {[%clk 0:01:11]}  Kg8 {[%clk 0:00:01]} 48. Nh5 {[%clk 0:01:10]}  Be5 {[%clk 0:00:01]} 49. f6 {[%clk 0:01:10]}  Kf8 {[%clk 0:00:01]} 50. Qxg7+ {[%clk 0:01:10]}  Ke8 {[%clk 0:00:02]} 51. Qe7# {[%clk 0:01:11]} 1-0